bitfinex-derivatives/quotes_BTCF0:USTF0_20250327
["timestamp","ask_amount","ask_price","bid_price","bid_amount"]
[1743045411566,0.6170891,87563.0,87562.0,0.0026]
[1743045411780,0.6170891,87563.0,87562.0,0.002]
[1743045412176,0.2562891,87563.0,87562.0,0.002]
[1743045412382,0.2562891,87563.0,87562.0,0.0026]
[1743045412786,0.6170891,87563.0,87562.0,0.002]
[1743045414783,0.2562891,87563.0,87562.0,0.002]
[1743045415014,0.61708939,87563.0,87562.0,0.002]
[1743045416984,0.1141923,87561.0,87560.0,0.00045683]
[1743045417187,0.12871147,87561.0,87560.0,0.00045683]
[1743045417887,0.13460756,87561.0,87560.0,0.00045683]
[1743045418192,0.13460756,87561.0,87560.0,0.00145683]
[1743045418489,0.14597195,87561.0,87560.0,0.00145683]
[1743045419488,0.14597195,87561.0,87560.0,0.00233683]
[1743045419790,0.14597195,87561.0,87560.0,0.00145683]
[1743045421887,0.25809195,87561.0,87560.0,0.00145683]
[1743045422088,0.25811288,87561.0,87560.0,0.00145683]
[1743045424989,0.25811288,87561.0,87560.0,0.00213683]
[1743045425991,0.2581129,87561.0,87560.0,0.00213683]
[1743045427180,0.2581129,87561.0,87560.0,0.00145683]
[1743045429988,0.25810488,87561.0,87560.0,0.00145683]
[1743045430585,0.61890488,87561.0,87560.0,0.00145683]
[1743045430786,0.65210488,87561.0,87560.0,0.00205683]
[1743045431691,0.29130488,87561.0,87560.0,0.00205683]
[1743045431892,0.65210488,87561.0,87560.0,0.00205683]
[1743045432081,0.53998488,87561.0,87560.0,0.00205683]
[1743045432280,0.65210488,87561.0,87560.0,0.00205683]
[1743045432677,0.29130488,87561.0,87560.0,0.00205683]
[1743045433088,0.65210488,87561.0,87560.0,0.00205683]
[1743045433283,0.63745279,87561.0,87560.0,0.00205683]
[1743045433588,0.6315567,87561.0,87560.0,0.00205683]
[1743045434493,0.64052143,87561.0,87560.0,0.00205683]
[1743045434693,0.67202143,87561.0,87560.0,0.00205683]
[1743045435292,0.67817089,87561.0,87560.0,0.00205683]
[1743045435501,0.1141976,87557.0,87556.0,0.07335195]
[1743045435791,0.13917263,87557.0,87556.0,0.07447195]
[1743045435992,0.13951432,87557.0,87556.0,0.06572]
[1743045436383,0.20311432,87557.0,87556.0,0.06572]
[1743045436580,0.20449243,87557.0,87556.0,0.04001512]
[1743045436784,0.20449243,87557.0,87556.0,0.04101512]
[1743045437085,0.1943735,87557.0,87556.0,0.04301512]
[1743045437587,0.20008565,87557.0,87556.0,0.04301512]
[1743045437994,0.16858565,87557.0,87556.0,0.04301512]
[1743045438294,0.13639162,87557.0,87556.0,0.04301512]
[1743045440693,0.13640366,87557.0,87556.0,0.04301512]
[1743045441297,0.13640366,87557.0,87556.0,0.04257512]
[1743045442099,0.13641496,87557.0,87556.0,0.04257512]
[1743045444001,0.13637624,87557.0,87556.0,0.04257512]
[1743045445800,0.146415,87557.0,87556.0,0.04257512]
[1743045447897,0.14070281,87557.0,87556.0,0.04257512]
[1743045448095,0.14641489,87557.0,87556.0,0.04257512]
[1743045448298,0.28344885,87557.0,87556.0,0.24776957]
[1743045450704,0.29835142,87557.0,87556.0,0.22206518]
[1743045451607,0.28344885,87557.0,87556.0,0.22206518]
[1743045452007,0.28342875,87557.0,87556.0,0.22206518]
[1743045454005,0.42710875,87557.0,87556.0,0.22206518]
[1743045454396,0.46040875,87557.0,87556.0,0.22206518]
[1743045456502,0.46040875,87557.0,87556.0,0.20887445]
[1743045456904,0.32337479,87557.0,87556.0,0.00368]
[1743045457708,0.33833601,87557.0,87556.0,0.00368]
[1743045458209,0.33850742,87557.0,87556.0,0.00368]
[1743045463314,0.33279534,87557.0,87556.0,0.00368]
[1743045464914,0.33850748,87557.0,87556.0,0.00368]
[1743045465806,0.32354778,87557.0,87556.0,0.00368]
[1743045466010,0.3235478,87557.0,87556.0,0.00368]
[1743045466716,0.31783564,87557.0,87556.0,0.00368]
[1743045467616,0.3235478,87557.0,87556.0,0.00368]
[1743045468117,0.32348879,87557.0,87556.0,0.00368]
[1743045468318,0.32348879,87557.0,87556.0,0.20887445]
[1743045468319,0.46040096,87557.0,87556.0,0.20887445]
[1743045468518,0.46040096,87557.0,87556.0,0.20819445]
[1743045468820,0.46040096,87557.0,87556.0,0.20879445]
[1743045469022,0.46040096,87557.0,87556.0,0.20819445]
[1743045469814,0.47537499,87557.0,87556.0,0.20819445]
[1743045470119,0.47537499,87557.0,87556.0,0.20883445]
[1743045470617,0.46966283,87557.0,87556.0,0.20883445]
[1743045471120,0.47537499,87557.0,87556.0,0.20883445]
[1743045471418,0.46966283,87557.0,87556.0,0.20883445]
[1743045472011,0.46968701,87557.0,87556.0,0.20883445]
[1743045472305,0.47539917,87557.0,87556.0,0.20883445]
[1743045472621,0.46968701,87557.0,87556.0,0.20883445]
[1743045472814,0.47539917,87557.0,87556.0,0.20883445]
[1743045473011,0.46968701,87557.0,87556.0,0.20819445]
[1743045473211,0.47539917,87557.0,87556.0,0.20819445]
[1743045473921,0.47539917,87557.0,87556.0,0.20879445]
[1743045474611,0.47539917,87557.0,87556.0,0.20819445]
[1743045476020,0.33843438,87557.0,87556.0,0.003]
[1743045476221,0.33843438,87557.0,87556.0,0.0036]
[1743045476914,0.33843438,87557.0,87556.0,0.00045501]
[1743045478020,0.33839017,87557.0,87556.0,0.00045501]
[1743045480523,0.22635017,87557.0,87556.0,0.00045501]
[1743045480823,0.33839017,87557.0,87556.0,0.00045501]
[1743045483020,0.33839017,87557.0,87556.0,4.993e-05]
[1743045483225,0.33839017,87557.0,87556.0,0.0006]
[1743045485224,0.33844823,87557.0,87556.0,0.0006]
[1743045487324,0.33847343,87557.0,87556.0,0.0006]
[1743045490232,0.1141989,87556.0,87555.0,0.033]
[1743045490541,0.1455065,87556.0,87555.0,0.03364]
[1743045490831,0.3217465,87556.0,87555.0,0.03364]
[1743045491228,0.33793438,87556.0,87555.0,0.03364]
[1743045491719,0.33793438,87556.0,87555.0,0.03564]
[1743045491924,0.33793438,87556.0,87555.0,0.00993521]
[1743045492125,0.33793438,87556.0,87555.0,0.00264]
[1743045492530,0.30790712,87556.0,87555.0,0.00364]
[1743045493133,0.2917189,87556.0,87555.0,0.00364]
[1743045493935,0.30667368,87556.0,87555.0,0.00364]
[1743045494127,0.3383277,87556.0,87555.0,0.00364]
[1743045495225,0.3383277,87556.0,87555.0,0.00037038]
[1743045495421,0.3383277,87556.0,87555.0,0.00097038]
[1743045497731,0.33901543,87556.0,87555.0,0.00097038]
[1743045497936,0.39454805,87556.0,87555.0,0.00097038]
[1743045498130,0.39454805,87556.0,87555.0,0.00037038]
[1743045498336,0.1142002,87555.0,87554.0,0.00017128]
[1743045498628,0.1142093,87548.0,87547.0,0.0626]
[1743045498835,0.14628056,87548.0,87547.0,0.0632]
[1743045499525,0.22594583,87548.0,87547.0,0.0632]
[1743045500125,0.22594583,87548.0,87547.0,0.0652]
[1743045500436,0.22594578,87548.0,87547.0,0.0652]
[1743045501035,0.22023318,87548.0,87547.0,0.0652]
[1743045501236,0.22023318,87548.0,87547.0,0.0344]
[1743045501537,0.22023318,87548.0,87547.0,0.0354]
[1743045501930,0.18703318,87548.0,87547.0,0.0036]
[1743045502133,0.21743318,87548.0,87547.0,0.0036]
[1743045503532,0.21724943,87548.0,87547.0,0.0036]
[1743045504834,0.22296202,87548.0,87547.0,0.0036]
[1743045505640,0.22301982,87548.0,87547.0,0.0036]
[1743045506946,0.1142106,87547.0,87546.0,0.00939333]
[1743045507136,0.25260326,87547.0,87546.0,0.00939333]
[1743045507335,0.31520326,87547.0,87546.0,0.00939333]
[1743045507939,0.33225814,87547.0,87546.0,0.00939333]
[1743045508339,0.33225814,87547.0,87546.0,0.01039333]
[1743045508544,0.33225814,87547.0,87546.0,0.01239333]
[1743045509543,0.33188408,87547.0,87546.0,0.01239333]
[1743045510343,0.21988408,87547.0,87546.0,0.01239333]
[1743045510543,0.33188408,87547.0,87546.0,0.01239333]
[1743045511433,0.33186802,87547.0,87546.0,0.01239333]
[1743045511937,0.1142328,87530.0,87529.0,0.3608]
[1743045512141,0.1142341,87529.0,87521.0,0.4743]
[1743045512339,0.1142341,87529.0,87522.0,1.6142422]
[1743045512340,0.18691969,87529.0,87522.0,1.6142422]
[1743045512642,0.18691969,87529.0,87521.0,0.588544]
[1743045512846,0.18691969,87529.0,87524.0,0.1142401]
[1743045513037,0.18179788,87529.0,87524.0,0.2284802]
[1743045513354,0.23125276,87529.0,87525.0,0.0302]
[1743045513643,0.23125276,87529.0,87528.0,0.00345699]
[1743045514545,0.22525276,87529.0,87528.0,0.00345699]
[1743045515345,0.22525276,87529.0,87528.0,0.00545699]
[1743045515644,0.23699234,87529.0,87528.0,0.00545699]
[1743045517346,0.23699234,87529.0,87528.0,0.03705699]
[1743045517549,0.23686635,87529.0,87528.0,0.03705699]
[1743045520643,0.23679093,87529.0,87528.0,0.03705699]
[1743045520949,0.34879093,87529.0,87528.0,0.03705699]
[1743045521139,0.34719093,87529.0,87528.0,0.03705699]
[1743045521642,0.34719093,87529.0,87528.0,0.15129239]
[1743045521850,0.34879093,87529.0,87528.0,0.15129239]
[1743045522842,0.31719093,87529.0,87528.0,0.18409239]
[1743045523145,0.31719093,87529.0,87528.0,0.21429239]
[1743045523348,0.31559093,87529.0,87528.0,0.09905699]
[1743045523543,0.31559093,87529.0,87528.0,0.21329239]
[1743045524145,0.31559093,87529.0,87528.0,0.21129239]
[1743045524446,0.31559093,87529.0,87528.0,0.21229239]
[1743045525051,0.31719093,87529.0,87528.0,0.21229239]
[1743045525749,0.31559093,87529.0,87528.0,0.21229239]
[1743045525949,0.31719093,87529.0,87528.0,0.21229239]
[1743045526443,0.31819093,87529.0,87528.0,0.21029239]
[1743045527151,0.32019093,87529.0,87528.0,0.20929239]
[1743045529350,0.32019093,87529.0,87528.0,0.03205699]
[1743045532944,0.20819093,87529.0,87528.0,0.03205699]
[1743045533147,0.32019093,87529.0,87528.0,0.03205699]
[1743045539450,0.33516061,87529.0,87528.0,0.03205699]
[1743045540949,0.33529577,87529.0,87528.0,0.03205699]
[1743045541251,0.34100969,87529.0,87528.0,0.03205699]
[1743045541450,0.32613756,87529.0,87528.0,0.03205699]
[1743045544560,0.30908268,87529.0,87528.0,0.03205699]
[1743045544758,0.1142354,87528.0,87527.0,0.1142356]
[1743045545059,0.1308844,87528.0,87527.0,0.1142356]
[1743045545258,0.1933844,87528.0,87527.0,0.1142356]
[1743045545851,0.21026378,87528.0,87527.0,0.1142356]
[1743045546056,0.21126378,87528.0,87527.0,0.1142356]
[1743045546251,0.21326378,87528.0,87527.0,0.1142356]
[1743045547551,0.32526378,87528.0,87527.0,0.1142356]
[1743045547750,0.32526378,87528.0,87527.0,0.15790844]
[1743045547954,0.31954986,87528.0,87527.0,0.1768356]
[1743045550568,0.31939845,87528.0,87527.0,0.1768356]
[1743045551161,0.31939845,87528.0,87527.0,0.1142356]
[1743045552461,0.31936129,87528.0,87527.0,0.1142356]
[1743045553564,0.114238,87526.0,87525.0,0.33059763]
[1743045553765,0.12494451,87526.0,87525.0,0.33059763]
[1743045554154,0.14182389,87526.0,87525.0,0.33059763]
[1743045554354,0.20602389,87526.0,87525.0,0.33059763]
[1743045554963,0.20702389,87526.0,87525.0,0.33059763]
[1743045556453,0.30960256,87526.0,87525.0,0.0571196]
[1743045557955,0.19536456,87526.0,87523.0,0.27347803]
[1743045558155,0.1142406,87524.0,87523.0,0.27347803]
[1743045558356,0.1306427,87524.0,87523.0,0.27347803]
[1743045558662,0.21172208,87524.0,87523.0,0.27347803]
[1743045559760,0.20133477,87524.0,87523.0,0.27347803]
[1743045561065,0.1142445,87521.0,87520.0,0.00017128]
[1743045561259,0.1249326,87521.0,87520.0,0.00017128]
[1743045561465,0.13142467,87521.0,87520.0,0.11441708]
[1743045561863,0.19502467,87521.0,87520.0,0.20771708]
[1743045562570,0.19602467,87521.0,87520.0,0.20771708]
[1743045562765,0.19602467,87521.0,87520.0,1.70771708]
[1743045562964,0.19442467,87521.0,87520.0,1.70771708]
[1743045563160,0.19442467,87521.0,87520.0,1.59347128]
[1743045564275,0.19429783,87521.0,87520.0,1.59347128]
[1743045565370,0.19589783,87521.0,87520.0,1.59347128]
[1743045565575,0.19429783,87521.0,87520.0,1.59347128]
[1743045566266,0.19428504,87521.0,87520.0,1.59347128]
[1743045567962,0.19428504,87521.0,87520.0,0.09347128]
[1743045568167,0.19588504,87521.0,87520.0,0.2989735]
[1743045568668,0.19588504,87521.0,87520.0,1.7989735]
[1743045568870,0.19428504,87521.0,87520.0,1.7989735]
[1743045570578,0.19428504,87521.0,87520.0,0.2989735]
[1743045570778,0.19596504,87521.0,87520.0,0.2056735]
[1743045571375,0.19428504,87521.0,87520.0,0.2056735]
[1743045572877,0.19428504,87521.0,87520.0,0.00017128]
[1743045573094,0.19588504,87521.0,87520.0,0.00017128]
[1743045573275,0.19588504,87521.0,87520.0,0.03087128]
[1743045573980,0.19588504,87521.0,87520.0,0.00017128]
[1743045574684,0.19588504,87521.0,87520.0,0.11441708]
[1743045575074,0.19588504,87521.0,87520.0,0.14511708]
[1743045575275,0.19588504,87521.0,87520.0,0.03087128]
[1743045576782,0.19588504,87521.0,87520.0,0.14511708]
[1743045576979,0.19588504,87521.0,87520.0,0.17731708]
[1743045580681,0.19595946,87521.0,87520.0,0.17731708]
[1743045582280,0.19596009,87521.0,87520.0,0.17731708]
[1743045586393,0.19596009,87521.0,87520.0,0.3828193]
[1743045587198,0.19596009,87521.0,87520.0,0.3506193]
[1743045587987,0.19596009,87521.0,87520.0,0.3199193]
[1743045589599,0.19596009,87521.0,87520.0,0.11441708]
[1743045590086,0.19603416,87521.0,87520.0,0.11441708]
[1743045591394,0.19603416,87521.0,87520.0,0.00017128]
[1743045591698,0.19603416,87521.0,87520.0,0.11441708]
[1743045592799,0.19603416,87521.0,87520.0,0.00017128]
[1743045592999,0.19603416,87521.0,87520.0,0.11441708]
[1743045594597,0.19603416,87521.0,87520.0,0.00017128]
[1743045596302,0.19603416,87521.0,87520.0,0.11441708]
[1743045597994,0.19602648,87521.0,87520.0,0.11441708]
[1743045599998,0.20174072,87521.0,87520.0,0.11441708]
[1743045600596,0.20174072,87521.0,87520.0,0.17641708]
[1743045601296,0.19602648,87521.0,87520.0,0.17641708]
[1743045602705,0.20174072,87521.0,87520.0,0.17641708]
[1743045606892,0.19602648,87521.0,87520.0,0.17641708]
[1743045607402,0.08178198,87521.0,87520.0,0.17641708]
[1743045607706,0.1142445,87525.0,87524.0,0.1142393]
[1743045607911,0.11544451,87525.0,87524.0,1.6149193]
[1743045608205,0.11544451,87525.0,87524.0,1.62654938]
[1743045608508,0.11544451,87525.0,87524.0,1.6149193]
[1743045608702,0.1142445,87525.0,87524.0,1.6149193]
[1743045608906,0.1164045,87525.0,87524.0,1.6149193]
[1743045610009,0.1184045,87525.0,87524.0,1.6149193]
[1743045610614,0.1174045,87525.0,87524.0,1.6149193]
[1743045610806,0.1174045,87525.0,87524.0,1.9757193]
[1743045611007,0.1162445,87525.0,87524.0,1.9757193]
[1743045611211,0.1474445,87525.0,87524.0,1.9757193]
[1743045611607,0.1464445,87525.0,87524.0,1.9757193]
[1743045612711,0.1464445,87525.0,87524.0,1.98714297]
[1743045613111,0.0322,87525.0,87524.0,1.98714297]
[1743045613407,0.24592429,87532.0,87524.0,1.98714297]
[1743045613408,0.10254429,87532.0,87531.0,0.1142315]
[1743045613615,0.21677449,87532.0,87531.0,0.1149115]
[1743045614117,0.2178945,87532.0,87531.0,0.1149115]
[1743045614307,0.21677449,87532.0,87531.0,0.1792115]
[1743045614510,0.24707449,87532.0,87531.0,0.1792115]
[1743045615209,0.24907449,87532.0,87531.0,0.1792115]
[1743045615911,0.13484429,87532.0,87531.0,0.1792115]
[1743045617018,0.13784429,87532.0,87531.0,0.1792115]
[1743045617313,0.0353,87532.0,87531.0,0.38459187]
[1743045617518,0.03642001,87532.0,87531.0,0.38459187]
[1743045619116,0.00612001,87532.0,87531.0,0.38459187]
[1743045619418,0.005,87532.0,87531.0,0.38459187]
[1743045619614,0.00612001,87532.0,87531.0,0.38459187]
[1743045619821,0.005,87532.0,87531.0,0.38459187]
[1743045620016,0.00612001,87532.0,87531.0,0.38459187]
[1743045620613,0.0329,87536.0,87533.0,0.0571139]
[1743045620813,0.03410001,87536.0,87535.0,0.1142263]
[1743045621122,0.14832501,87536.0,87535.0,0.1148263]
[1743045621324,0.14832501,87536.0,87535.0,0.1791263]
[1743045621714,0.17882501,87536.0,87535.0,0.1791263]
[1743045622026,0.18082501,87536.0,87535.0,0.1791263]
[1743045622324,0.18082501,87536.0,87535.0,0.5887263]
[1743045622524,0.18482501,87536.0,87535.0,0.5887263]
[1743045623431,0.18582501,87536.0,87535.0,0.5887263]
[1743045624823,0.07160001,87536.0,87535.0,0.60050843]
[1743045625025,0.0704,87536.0,87535.0,0.60050843]
[1743045626820,0.07152001,87536.0,87535.0,0.60050843]
[1743045627022,0.0704,87536.0,87535.0,0.60050843]
[1743045627220,0.07152001,87536.0,87535.0,0.60050843]
[1743045627420,0.0704,87536.0,87535.0,0.60050843]
[1743045628916,0.184625,87536.0,87535.0,0.60050843]
[1743045629124,0.18574501,87536.0,87535.0,0.60050843]
[1743045629327,0.07152001,87536.0,87535.0,0.60050843]
[1743045629922,0.18574501,87536.0,87535.0,0.5887263]
[1743045630319,0.18574501,87536.0,87535.0,0.59993745]
[1743045631729,0.07152001,87536.0,87535.0,0.59993745]
[1743045632027,0.0704,87536.0,87535.0,0.59993745]
[1743045632524,0.07152001,87536.0,87535.0,0.59993745]
[1743045633423,0.18574501,87536.0,87535.0,0.59993745]
[1743045634127,0.07152001,87536.0,87535.0,0.59993745]
[1743045634529,0.0704,87536.0,87535.0,0.59993745]
[1743045635524,0.07156,87536.0,87535.0,0.59993745]
[1743045636115,0.07156,87536.0,87535.0,0.96073745]
[1743045636323,0.185785,87536.0,87535.0,0.96073745]
[1743045637523,0.185785,87536.0,87535.0,0.9495263]
[1743045638131,0.184625,87536.0,87535.0,0.9495263]
[1743045639524,0.0704,87536.0,87535.0,0.9495263]
[1743045639929,0.0704,87536.0,87535.0,0.5887263]
[1743045640130,0.07156,87536.0,87535.0,0.9495263]
[1743045640331,0.0704,87536.0,87535.0,0.9495263]
[1743045641529,0.0704,87536.0,87535.0,1.2233668]
[1743045644228,0.184625,87536.0,87535.0,1.2233668]
[1743045645739,0.184625,87536.0,87535.0,0.9495263]
[1743045647136,0.19065123,87536.0,87535.0,0.9495263]
[1743045649840,0.07642623,87536.0,87535.0,0.9495263]
[1743045652329,0.19065123,87536.0,87535.0,0.9495263]
[1743045652539,0.19177124,87536.0,87535.0,0.9495263]
[1743045652738,0.19181123,87536.0,87535.0,0.9495263]
[1743045656748,0.19181123,87536.0,87535.0,0.771]
[1743045656937,0.19177124,87536.0,87535.0,0.771]
[1743045657247,0.20642653,87536.0,87535.0,0.4102]
[1743045657443,0.20642653,87536.0,87535.0,0.0006]
[1743045658147,0.1142263,87535.0,87534.0,0.31673634]
[1743045658348,0.14564548,87535.0,87534.0,0.29166514]
[1743045658643,0.22309541,87535.0,87534.0,0.29166514]
[1743045659846,0.22609541,87535.0,87534.0,0.29166514]
[1743045660038,0.22609541,87535.0,87534.0,0.00064]
[1743045660442,0.22609592,87535.0,87534.0,0.00064]
[1743045661444,0.22809592,87535.0,87534.0,0.00064]
[1743045661645,0.22238232,87535.0,87534.0,0.00064]
[1743045661848,0.22809592,87535.0,87534.0,0.00064]
[1743045663350,0.1142354,87528.0,87527.0,0.1142363]
[1743045663553,0.25170149,87528.0,87527.0,0.1148363]
[1743045663751,0.25218124,87528.0,87527.0,0.1148363]
[1743045664041,0.25218124,87528.0,87527.0,1.5006]
[1743045664243,0.33373117,87528.0,87527.0,1.5006]
[1743045664646,0.33373117,87528.0,87527.0,1.6148367]
[1743045664647,0.33473117,87528.0,87527.0,1.6148367]
[1743045665142,0.33473117,87528.0,87527.0,0.0006]
[1743045665748,0.33475541,87528.0,87527.0,0.0006]
[1743045665948,0.33475541,87528.0,87527.0,0.1148367]
[1743045666148,0.33475541,87528.0,87527.0,0.0006]
[1743045666351,0.33675541,87528.0,87527.0,0.0006]
[1743045666752,0.69755541,87528.0,87527.0,0.0006]
[1743045666950,0.1142419,87523.0,87522.0,0.20554954]
[1743045667153,0.14045198,87523.0,87522.0,0.20614954]
[1743045667753,0.20345198,87523.0,87522.0,0.20614954]
[1743045668152,0.22010191,87523.0,87522.0,0.20614954]
[1743045670174,0.22581606,87523.0,87522.0,0.20614954]
[1743045671363,0.22581606,87523.0,87522.0,0.0006]
[1743045671755,0.1142445,87521.0,87515.0,0.20554954]
[1743045671954,0.14620874,87521.0,87515.0,0.20554954]
[1743045672263,0.14620874,87521.0,87520.0,0.00157128]
[1743045672563,0.16285867,87521.0,87520.0,0.00157128]
[1743045673260,0.16285867,87521.0,87520.0,0.00018078]
[1743045673466,0.1142511,87516.0,87515.0,0.20554954]
[1743045673760,0.25254118,87516.0,87515.0,0.20554954]
[1743045674464,0.33329111,87516.0,87515.0,0.20554954]
[1743045675663,0.34191128,87516.0,87515.0,0.20554954]
[1743045675860,0.34191128,87516.0,87515.0,0.20654954]
[1743045676063,0.34191128,87516.0,87515.0,0.001]
[1743045683774,0.70271128,87516.0,87515.0,0.001]
[1743045684172,0.71446873,87516.0,87515.0,0.001]
[1743045684668,0.35366873,87516.0,87515.0,0.001]
[1743045684870,0.70271128,87516.0,87515.0,0.001]
[1743045685265,0.69313412,87516.0,87515.0,0.001]
[1743045686271,0.69313412,87516.0,87496.0,0.00045716]
[1743045686272,0.0571315,87507.0,87496.0,0.00045716]
[1743045686461,0.1142706,87501.0,87497.0,0.0311]
[1743045686667,0.12554833,87501.0,87497.0,0.031]
[1743045686960,0.14791428,87501.0,87497.0,0.031]
[1743045687159,0.2592329,87501.0,87497.0,0.031]
[1743045687369,0.3241329,87501.0,87497.0,0.031]
[1743045687776,0.31841687,87501.0,87500.0,0.104]
[1743045687973,0.31841687,87501.0,87500.0,0.108]
[1743045688472,0.31841687,87501.0,87500.0,0.106]
[1743045688865,0.32993669,87501.0,87500.0,0.106]
[1743045689269,0.32979443,87501.0,87500.0,0.106]
[1743045689575,0.32979443,87501.0,87500.0,0.103]
[1743045691066,0.69059443,87501.0,87500.0,0.103]
[1743045694780,0.32979443,87501.0,87500.0,0.103]
[1743045694980,0.69059443,87501.0,87500.0,0.103]
[1743045699978,0.69059443,87501.0,87500.0,0.1345]
[1743045700372,0.69631051,87501.0,87500.0,0.1345]
[1743045701184,0.67971331,87501.0,87500.0,0.1345]
[1743045701575,0.69616737,87501.0,87500.0,0.1345]
[1743045702482,0.33536737,87501.0,87500.0,0.1345]
[1743045702682,0.69616737,87501.0,87500.0,0.1345]
[1743045703187,0.69615347,87501.0,87500.0,0.1345]
[1743045705476,0.79857066,87501.0,87500.0,0.1345]
[1743045708877,0.79285453,87501.0,87500.0,0.1325]
[1743045709084,0.79857067,87501.0,87500.0,0.1335]
[1743045709589,0.69615348,87501.0,87500.0,0.1335]
[1743045710684,0.69615348,87501.0,87500.0,0.10777734]
[1743045713882,0.58439348,87501.0,87500.0,0.10777734]
[1743045714089,0.69615348,87501.0,87500.0,0.10777734]
[1743045714793,0.69043734,87501.0,87500.0,0.10777734]
[1743045714978,0.69615334,87501.0,87500.0,0.10777734]
[1743045715174,0.33535334,87501.0,87500.0,0.10777734]
[1743045715380,0.69615334,87501.0,87500.0,0.10777734]
[1743045716888,0.69618585,87501.0,87500.0,0.07627734]
[1743045718592,0.69618585,87501.0,87492.0,0.20554954]
[1743045718593,0.0571386,87496.0,87492.0,0.20554954]
[1743045718795,0.1142811,87493.0,87492.0,0.20554954]
[1743045719092,0.49152246,87493.0,87492.0,0.16553867]
[1743045719298,0.1142942,87483.0,87482.0,0.3416363]
[1743045719486,0.60325556,87483.0,87482.0,0.3416363]
[1743045719794,0.61970962,87483.0,87482.0,0.3416363]
[1743045719990,0.61670962,87483.0,87482.0,0.3416363]
[1743045720192,0.68040962,87483.0,87482.0,0.3416363]
[1743045720498,0.69551401,87483.0,87482.0,0.31590774]
[1743045721497,0.69251401,87483.0,87482.0,0.31590774]
[1743045722097,0.69251553,87483.0,87482.0,0.31590774]
[1743045722287,0.1132968,87481.0,87478.0,0.0305]
[1743045722487,0.16137813,87481.0,87478.0,0.0305]
[1743045722992,0.22467813,87481.0,87478.0,0.0305]
[1743045724498,0.30068066,87481.0,87478.0,0.0305]
[1743045724690,0.30068066,87481.0,87479.0,0.0332]
[1743045725196,0.30068066,87481.0,87480.0,0.03065724]
[1743045725399,0.30168066,87481.0,87480.0,0.03065724]
[1743045725695,0.26942066,87481.0,87480.0,0.21265534]
[1743045725889,0.26942066,87481.0,87480.0,0.09835724]
[1743045729497,0.15766066,87481.0,87480.0,0.21265534]
[1743045729698,0.04436386,87481.0,87480.0,0.21265534]
[1743045729996,0.04526685,87481.0,87480.0,0.24595534]
[1743045730707,0.15956365,87481.0,87480.0,0.65555534]
[1743045731701,0.15956365,87481.0,87480.0,0.66676628]
[1743045732004,0.15956365,87481.0,87480.0,1.02756628]
[1743045732191,0.15780365,87481.0,87480.0,1.02756628]
[1743045732392,0.04350685,87481.0,87480.0,1.02756628]
[1743045732592,0.13645169,87497.0,87489.0,0.114285]
[1743045732800,0.13645169,87497.0,87492.0,0.1142824]
[1743045733102,0.13645169,87497.0,87496.0,0.1142772]
[1743045733292,0.13761169,87497.0,87496.0,0.12649337]
[1743045733492,0.25072759,87497.0,87496.0,0.12649337]
[1743045733893,0.25072759,87497.0,87496.0,0.1148772]
[1743045734498,0.25472759,87497.0,87496.0,0.1148772]
[1743045735489,0.25972759,87497.0,87496.0,0.1148772]
[1743045735690,0.25972759,87497.0,87496.0,0.4756772]
[1743045736706,0.1232759,87497.0,87496.0,0.4756772]
[1743045737803,0.009,87497.0,87496.0,0.4756772]
[1743045739805,0.01129474,87503.0,87499.0,0.0571366]
[1743045740003,0.1142668,87504.0,87503.0,0.1142667]
[1743045740193,0.1142668,87504.0,87503.0,0.5390467]
[1743045740194,0.00116,87504.0,87503.0,0.5390467]
[1743045740507,0.00025139,87505.0,87504.0,0.1142667]
[1743045740703,0.00017139,87505.0,87504.0,0.1148667]
[1743045740904,0.00017139,87505.0,87504.0,0.1802667]
[1743045741609,0.0316,87514.0,87507.0,0.1142628]
[1743045741804,0.00116,87514.0,87513.0,0.114255]
[1743045742007,0.01258423,87514.0,87513.0,0.114855]
[1743045742200,0.00116,87514.0,87513.0,0.114855]
[1743045742396,0.00116,87514.0,87513.0,0.180255]
[1743045743306,0.1154137,87514.0,87513.0,0.180255]
[1743045743703,0.1214137,87514.0,87513.0,0.180255]
[1743045743902,0.13283334,87514.0,87513.0,0.180255]
[1743045744102,0.13483334,87514.0,87513.0,0.180255]
[1743045744707,0.14783721,87514.0,87513.0,0.180255]
[1743045744903,0.14983721,87514.0,87513.0,0.180255]
[1743045745108,0.18263721,87514.0,87513.0,0.180255]
[1743045750013,0.06838351,87514.0,87513.0,0.180255]
[1743045750217,0.06722351,87514.0,87513.0,0.180255]
[1743045751015,0.05580387,87514.0,87513.0,0.180255]
[1743045752316,0.05696387,87514.0,87513.0,0.180255]
[1743045753016,0.05696387,87514.0,87513.0,0.541055]
[1743045754413,0.05580387,87514.0,87513.0,2.041055]
[1743045754611,0.05559106,87514.0,87513.0,2.041055]
[1743045758919,0.04682666,87514.0,87513.0,2.041055]
[1743045761423,0.16108036,87514.0,87513.0,2.041055]
[1743045761614,0.19418036,87514.0,87513.0,2.041055]
[1743045762013,0.19418036,87514.0,87513.0,1.680255]
[1743045762214,0.19418036,87514.0,87513.0,2.041055]
[1743045762715,0.07992666,87514.0,87513.0,2.041055]
[1743045763414,0.19418036,87514.0,87513.0,2.041055]
[1743045763723,0.19418036,87514.0,87513.0,1.680255]
[1743045763923,0.19418036,87514.0,87513.0,2.041055]
[1743045764117,0.07992666,87514.0,87513.0,2.041055]
[1743045764716,0.07992666,87514.0,87513.0,1.680255]
[1743045764917,0.07992666,87514.0,87513.0,2.041055]
[1743045765824,0.07992666,87514.0,87513.0,1.680255]
[1743045766023,0.07992666,87514.0,87513.0,2.041055]
[1743045767413,0.07992666,87514.0,87513.0,1.680255]
[1743045767625,0.07992666,87514.0,87513.0,2.041055]
[1743045769119,0.07992666,87514.0,87513.0,1.680255]
[1743045769317,0.07992666,87514.0,87513.0,2.041055]
[1743045771226,0.07992666,87514.0,87513.0,1.680255]
[1743045771418,0.07992666,87514.0,87513.0,2.041055]
[1743045776425,0.07992666,87514.0,87513.0,1.680255]
[1743045776628,0.07992666,87514.0,87513.0,2.041055]
[1743045779840,0.07992666,87514.0,87513.0,1.680255]
[1743045780138,0.07992666,87514.0,87513.0,2.041055]
[1743045781741,0.0739,87514.0,87513.0,2.041055]
[1743045784138,0.0739,87514.0,87513.0,2.77288193]
[1743045784546,0.0739,87514.0,87513.0,2.41208193]
[1743045784741,0.0739,87514.0,87513.0,2.77288193]
[1743045784942,0.0739,87514.0,87513.0,2.41208193]
[1743045785139,0.0739,87514.0,87513.0,2.77288193]
[1743045787445,0.0739,87514.0,87513.0,2.43198887]
[1743045792557,0.07972327,87514.0,87513.0,2.43198887]
[1743045794761,0.07972327,87514.0,87513.0,0.93198887]
[1743045797168,0.07972327,87514.0,87513.0,0.57118887]